fUST/lending_fUST_20251021
["ID","MTS","AMOUNT","RATE_DAILY","PERIOD"]
[391972743,1761043833031,-878.562116,0.00025847,2]
[391972744,1761043833040,-878.562116,0.00025847,2]
[391972745,1761043833050,-878.562116,0.00025847,2]
[391972746,1761043833059,-878.562116,0.00025847,2]
[391972747,1761043833069,-878.562116,0.00025847,2]
[391972748,1761043833078,-878.562116,0.00025847,2]
[391972749,1761043833087,-878.562116,0.00025847,2]
[391972750,1761043833097,-878.562116,0.00025847,2]
[391972751,1761043833108,-878.562116,0.00025847,2]
[391972752,1761043833118,-878.562116,0.00025847,2]
[391972753,1761043833128,-878.562116,0.00025847,2]
[391972754,1761043833138,-878.562116,0.00025847,2]
[391972755,1761043833148,-878.562116,0.00025847,2]
[391972756,1761043833158,-878.562116,0.00025847,2]
[391972757,1761043833167,-878.562116,0.00025847,2]
[391972758,1761043833177,-878.562116,0.00025847,2]
[391972759,1761043833187,-878.562116,0.00025847,2]
[391972760,1761043833196,-878.562116,0.00025847,2]
[391972761,1761043833206,-878.562116,0.00025847,2]
[391972762,1761043833216,-878.562116,0.00025847,2]
[391972763,1761043833226,-878.562116,0.00025847,2]
[391972764,1761043833235,-878.562116,0.00025847,2]
[391972765,1761043833244,-878.562116,0.00025847,2]
[391972766,1761043833254,-878.562116,0.00025847,2]
[391972767,1761043833264,-878.562116,0.00025847,2]
[391972768,1761043833274,-878.562116,0.00025847,2]
[391972769,1761043833284,-878.562116,0.00025847,2]
[391972770,1761043833293,-873.93810486,0.00025847,2]
[391972771,1761043833303,-873.93810486,0.00025847,2]
[391972772,1761043833312,-873.93810486,0.00025847,2]
[391972773,1761043833322,-873.93810486,0.00025847,2]
[391972774,1761043833335,-873.93810486,0.00025847,2]
[391972775,1761043833345,-873.93810486,0.00025847,2]
[391972776,1761043833355,-873.93810486,0.00025847,2]
[391972777,1761043833367,-873.93810486,0.00025847,2]
[391972778,1761043833377,-873.93810486,0.00025847,2]
[391972779,1761043833387,-873.93810486,0.00025847,2]
[391972780,1761043833397,-873.93810486,0.00025847,2]
[391972781,1761043833406,-873.93810486,0.00025847,2]
[391972782,1761043833416,-873.93810486,0.00025847,2]
[391972783,1761043833426,-873.93810486,0.00025847,2]
[391972784,1761043833435,-873.93810486,0.00025847,2]
[391972785,1761043833445,-873.93810486,0.00025847,2]
[391972786,1761043833454,-873.93810486,0.00025847,2]
[391972787,1761043833463,-873.93810486,0.00025847,2]
[391972788,1761043833473,-873.93810486,0.00025847,2]
[391972789,1761043833482,-214.908586,0.00025848,7]
[391972790,1761043833492,-214.908586,0.00025848,7]
[391972791,1761043833502,-214.908586,0.00025848,7]
[391972792,1761043833511,-214.908586,0.00025848,7]
[391972793,1761043833521,-3710.1271832,0.00025848,2]
[391972794,1761043833530,-214.908586,0.00025858,7]
[391972795,1761043833539,-214.908586,0.00025858,7]
[391972796,1761043833548,-214.908586,0.00025858,7]
[391972797,1761043833559,-214.908586,0.00025858,7]
[391972798,1761043833569,-214.908586,0.00025858,7]
[391972799,1761043833579,-214.908586,0.00025858,7]
[391972800,1761043833589,-214.908586,0.00025858,7]
[391972801,1761043833598,-214.908586,0.00025858,7]
[391972802,1761043833609,-214.908586,0.00025858,7]
[391972803,1761043833619,-214.908586,0.00025858,7]
[391972804,1761043833629,-214.908586,0.00025858,7]
[391972805,1761043833638,-214.908576,0.00025858,7]
[391972806,1761043833648,-151.0,0.0002586,2]
[391972807,1761043833658,-151.0,0.0002586,2]
[391972808,1761043833668,-151.0,0.0002586,2]
[391972809,1761043833677,-151.0,0.0002586,2]
[391972810,1761043833686,-1855.0635916,0.0002586,2]
[391972811,1761043833696,-151.0,0.00025868,2]
[391972812,1761043833706,-151.0,0.00025868,2]
[391972813,1761043833715,-151.0,0.00025868,2]
[391972814,1761043833724,-151.0,0.00025868,2]
[391972815,1761043833734,-151.0,0.00025868,2]
[391972816,1761043833744,-151.0,0.00025868,2]
[391972817,1761043833753,-151.0,0.00025868,2]
[391972818,1761043833762,-151.0,0.00025868,2]
[391972819,1761043833771,-151.0,0.00025868,2]
[391972820,1761043833780,-294.044639,0.00025868,2]
[391972821,1761043833790,-500.0,0.00025869,2]
[391972822,1761043833799,-486.43568193,0.00025869,2]
[391972832,1761043838043,-24.48750457,0.00025869,2]
[391972833,1761043838054,-17231.0,0.0002587,7]
[391972834,1761043838063,-3012.4,0.000259,7]
[391972835,1761043838072,-500.0,0.00025924,2]
[391972836,1761043838082,-500.0,0.00025979,2]
[391972837,1761043838091,-3289.45023031,0.00026,2]
[391972838,1761043838100,-420.0,0.00026026,2]
[391972839,1761043838110,-500.0,0.00026033,2]
[391972840,1761043838120,-500.0,0.00026088,2]
[391972841,1761043838129,-188.0,0.00026143,2]
[391972842,1761043838139,-506.0,0.00026145,2]
[391972843,1761043838149,-240.0,0.000264,2]
[391972844,1761043838159,-500.0,0.00026611,2]
[391972845,1761043838169,-196.92,0.00026611,2]
[391972846,1761043838178,-296.0874526,0.00026662,2]
[391972847,1761043838188,-344.928891,0.00026676,2]
[391972848,1761043838197,-262.5,0.00027,2]
[391972849,1761043838207,-1137.12,0.00027207,3]
[391972850,1761043838217,-568.56,0.00027207,3]
[391972851,1761043838226,-1705.68,0.00027208,3]
[391972852,1761043838235,-160.0,0.00027433,2]
[391972853,1761043838245,-159.66,0.00027479,16]
[391972854,1761043838255,-3070.28,0.000275,7]
[391972855,1761043838264,-177.445983,0.00027557,2]
[391972856,1761043838274,-238.1393611,0.00027592,2]
[391972857,1761043838284,-285.0,0.000276,2]
[391972858,1761043838293,-319.08336664,0.00027849,2]
[391972859,1761043838303,-260.0,0.00027981,2]
[391972860,1761043838312,-212.35002793,0.00028107,2]
[391972861,1761043838321,-242.68574621,0.00028107,2]
[391972862,1761043838335,-307.5,0.000282,2]
[391972863,1761043838344,-587.0,0.00028223,2]
[391972864,1761043838354,-378.81728197,0.00028234,2]
[391972865,1761043838366,-360.0,0.00028529,2]
[391972866,1761043838378,-330.0,0.000288,2]
[391972867,1761043838387,-460.0,0.00029077,2]
[391972868,1761043838397,-210.0,0.000294,2]
[391972869,1761043838408,-296.0874526,0.00029542,2]
[391972870,1761043838417,-3012.4,0.000296,7]
[391972871,1761043838427,-720.0,0.00029625,2]
[391972872,1761043838436,-165.46,0.0003,5]
[391972873,1761043838446,-191.0,0.0003,2]
[391972874,1761043838455,-250.0,0.00030058,2]
[391972875,1761043838465,-250.0,0.00030058,2]
[391972876,1761043838475,-250.0,0.00030058,2]
[391972877,1761043838484,-310.22387796,0.00030058,2]
[391972878,1761043838495,-823.0,0.00030607,2]
[391972879,1761043838504,-476.0891974,0.0003065,2]
[391972880,1761043838514,-212.39836721,0.00031,120]
[391972881,1761043838524,-983.0,0.00031248,2]
[391972882,1761043838534,-632.0,0.00031248,2]
[391972883,1761043838544,-411.0,0.00031248,2]
[391972884,1761043838553,-2164.0,0.00031248,2]
[391972885,1761043838563,-1855.0635916,0.0003137,2]
[391972886,1761043838573,-5015.00272647,0.0003138,2]
[391972887,1761043838583,-730.75236712,0.00031398,2]
[391972888,1761043838592,-525.79538008,0.00031398,2]
[391972889,1761043838602,-409.84556529,0.00031477,2]
[391972890,1761043838613,-3710.1271832,0.00031488,2]
[391972891,1761043838623,-166.0,0.00031489,7]
[391972892,1761043838632,-166.0,0.00031489,7]
[391972893,1761043838642,-195.74671762,0.00031497,2]
[391972894,1761043838652,-95000.0,0.00031498,30]
[391972895,1761043838661,-417.15472785,0.00031498,30]
[391972896,1761043838670,-345.45211741,0.00031825,2]
[391972897,1761043838679,-372.17,0.00031902,2]
[391972898,1761043838688,-163.2381289,0.00031928,30]
[391972899,1761043838698,-173.097525,0.00032396,20]
[391972900,1761043838708,-208.0,0.00032422,2]
[391972901,1761043838717,-296.0874526,0.00032423,2]
[391972902,1761043838727,-15593.34296953,0.000325,2]
[391972953,1761043843249,-390.21525599,0.00025846,2]
[391972954,1761043843258,-248.42359249,0.00025846,2]
[391972955,1761043843268,-280.72477403,0.00030137,2]
[391972956,1761043843277,-514.8687437,0.000325,2]
[391972981,1761043843632,-269.8140792,0.000325,2]
[391972988,1761043843686,-20000.0,0.000325,2]
[391973000,1761043844154,-0.00041786,0.000325,2]
[391973004,1761043846432,-500.0,0.00025846,2]
[391973005,1761043846442,-500.0,0.00025846,2]
[391973006,1761043846451,-500.0,0.00025846,2]
[391973007,1761043846460,-500.0,0.00025846,2]
[391973008,1761043846469,-500.0,0.00025846,2]
[391973009,1761043846478,-500.0,0.00025846,2]
[391973010,1761043846488,-500.0,0.00025846,2]
[391973011,1761043846497,-500.0,0.00025846,2]
[391973012,1761043846506,-500.0,0.00025846,2]
[391973013,1761043846516,-500.0,0.00025846,2]
[391973146,1761043955027,378.82,0.0002227,2]
[391973147,1761044123796,374.0,0.00022467,2]
[391973150,1761044291229,369.24,0.00022044,2]
[391973151,1761044291747,738.48,0.00024048,2]
[391973152,1761044452936,1500.0,0.00015,2]
[391973153,1761044457869,357.05,0.00021541,2]
[391973155,1761044458830,714.1,0.00023499,2]
[391973157,1761044475701,8928.86,0.00024073,2]
[391973158,1761044475723,1071.14,0.00024073,2]
[391973159,1761044490381,6245.7,0.00024073,2]
[391973161,1761044625586,343.42,0.0002144,2]
[391973162,1761044626065,686.84,0.00023389,2]
[391973183,1761045017320,417.15472785,0.00024073,2]
[391973219,1761045032333,-5000.0,0.00024953,2]
[391973220,1761045032343,-300.0,0.00026626,2]
[391973221,1761045032352,-500.0,0.00026811,6]
[391973222,1761045032361,-500.0,0.00026811,6]
[391973223,1761045032370,-500.0,0.00026811,6]
[391973224,1761045032380,-500.0,0.00026811,6]
[391973225,1761045032389,-500.0,0.00026811,6]
[391973227,1761045032399,-500.0,0.00026811,6]
[391973229,1761045032407,-162.54250085,0.00028524,2]
[391973231,1761045032417,-1669.6712681,0.00028614,2]
[391973233,1761045032427,-7546.63217152,0.00028622,2]
[391973235,1761045032439,-7465.976,0.00028622,2]
[391973237,1761045032451,-34987.39182848,0.00028622,2]
[391973239,1761045032461,-18231.60758447,0.00028624,30]
[391973242,1761045032472,-21983.55131917,0.00028624,30]
[391973244,1761045032482,-1051.3955753,0.00028624,30]
[391973246,1761045032494,-1373.89552106,0.00028624,30]
[391973248,1761045032503,-2103.670924,0.00028624,2]
[391973250,1761045032513,-420.0,0.00028796,2]
[391973253,1761045032522,-500.0,0.0002916,2]
[391973256,1761045032532,-500.0,0.0002916,2]
[391973259,1761045032541,-500.0,0.0002916,2]
[391973262,1761045032551,-483.45217722,0.0002916,2]
[391973302,1761045038194,-16.54782278,0.0002916,2]
[391973303,1761045038204,-500.0,0.0002916,2]
[391973304,1761045038213,-195.42373009,0.0002916,2]
[391973305,1761045038223,-1000.0,0.00029161,2]
[391973306,1761045038233,-1000.0,0.00029161,2]
[391973307,1761045038242,-1000.0,0.00029161,2]
[391973308,1761045038251,-151.0,0.00029161,2]
[391973309,1761045038261,-151.52066872,0.00029161,2]
[391973310,1761045038271,-1000.0,0.00029161,2]
[391973311,1761045038280,-1000.0,0.00029161,2]
[391973312,1761045038289,-1000.0,0.00029161,2]
[391973313,1761045038298,-1000.0,0.00029161,2]
[391973314,1761045038307,-1000.0,0.00029161,2]
[391973315,1761045038317,-1000.0,0.00029161,2]
[391973316,1761045038327,-789.94093408,0.00029161,2]
[391973317,1761045038336,-203.7926754,0.0002971,2]
[391973318,1761045038346,-2751.54,0.000298,7]
[391973319,1761045038356,-212.39836721,0.00031,120]
[391973320,1761045038366,-587.0,0.00031144,2]
[391973321,1761045038376,-160.0,0.0003145,2]
[391973322,1761045038387,-789.5665406,0.00031453,2]
[391973323,1761045038397,-163.0,0.00031795,7]
[391973324,1761045038406,-163.0,0.00031795,7]
[391973325,1761045038415,-166.0,0.00031795,7]
[391973326,1761045038424,-632.0,0.00031813,2]
[391973327,1761045038434,-2164.0,0.00031813,2]
[391973328,1761045038443,-260.0,0.00031998,2]
[391973329,1761045038453,-303.0,0.000321,2]
[391973330,1761045038463,-330.31,0.0003219,2]
[391973331,1761045038473,-1773.5747047,0.000325,2]
[391973332,1761045041294,-6952.9678429,0.000325,2]
[391973358,1761045043398,-272.39358655,0.000325,2]
[391973359,1761045043411,-8261.48,0.000325,2]
[391973379,1761045047074,-480.0,0.000325,2]
[391973388,1761045302115,636.05541,0.00013699,2]
[391973389,1761045302329,636.05541,0.00020187,2]
[391973390,1761045376909,336.92,0.0002154,2]
[391973391,1761045377339,673.84,0.00023498,2]
[391973392,1761045541089,324.06,0.00021497,2]
[391973393,1761045541502,648.12,0.00023451,2]
[391973395,1761045585968,5000.0,0.00024073,2]
[391973396,1761045646243,3017.07,0.00024073,2]
[391973397,1761045646267,1982.93,0.00024073,2]
[391973398,1761045661922,6500.0,0.00021,10]
[391973399,1761045714799,1000.0,0.00030137,120]
[391973400,1761045716008,1000.0,0.00030137,120]
[391973401,1761045717219,1000.0,0.00030137,120]
[391973402,1761045782810,311.68,0.00021907,2]
[391973403,1761045783252,623.37,0.00023898,2]
[391973426,1761045867940,1897.9071125,0.00024073,2]
[391973427,1761045927122,307.79135254,0.00024073,2]
[391973428,1761046006061,3219.55385112,0.00023,2]
[391973429,1761046006087,6780.44614888,0.00023,2]
[391973430,1761046088110,-153.0435615,0.000237,30]
[391973431,1761046090549,-161.74423854,0.000237,30]
[391973432,1761046090936,4488.84404236,0.00021,5]
[391973433,1761046092001,-326.184517,0.000237,30]
[391973434,1761046094734,-164.51740676,0.000237,30]
[391973435,1761046096194,-176.83947363,0.000237,30]
[391973436,1761046098132,-195.55631107,0.000237,30]
[391973437,1761046101931,-153.0,0.00023463,2]
[391973438,1761046101957,-14.89747653,0.000237,30]
[391973439,1761046117504,-272.99996811,0.00023463,2]
[391973440,1761046119643,-319.58095645,0.00023463,2]
[391973441,1761046120291,383.98619864,0.0002,2]
[391973442,1761046121181,-300.0,0.00023463,2]
[391973443,1761046127566,-195.55631107,0.00023228,2]
[391973444,1761046127595,-104.6021879,0.00023463,2]
[391973445,1761046127625,-3697.15502831,0.000237,30]
[391973446,1761046127652,-531.66785006,0.000237,14]
[391973447,1761046130444,-1175.22205216,0.000239,2]
[391973448,1761046130472,-2052.36,0.0002399,3]
[391973449,1761046132550,-229.14279427,0.000232,2]
[391973450,1761046134678,-216.45285598,0.000232,2]
[391973451,1761046136520,-293.62757875,0.000232,2]
[391973452,1761046136550,-3226.3948425,0.0002399,10]
[391973453,1761046139528,-745.59565025,0.0002375,2]
[391973454,1761046139559,-2959.9651575,0.0002399,10]
[391973455,1761046139589,-1026.18,0.0002399,3]
[391973456,1761046205595,-302.54622906,0.0002387,12]
[391973457,1761046205624,-554.32750387,0.000239,2]
[391973458,1761046205650,-200.0,0.000239,2]
[391973459,1761046205676,-502.59212361,0.00023973,2]
[391973460,1761046205703,-300.0,0.00023989,2]
[391973461,1761046205731,-506.0,0.00023989,2]
[391973462,1761046205758,-579.13431215,0.0002399,2]
[391973463,1761046205928,-4110.80966262,0.0002399,2]
[391973464,1761046205961,-513.09,0.0002399,3]
[391973465,1761046205991,-150.0,0.0002399,2]
[391973466,1761046206024,-195.67067476,0.0002399,3]
[391973467,1761046206146,-60.86932524,0.0002399,3]
[391973468,1761046206179,-769.65,0.0002399,3]
[391973469,1761046206211,-2983.39,0.0002399,10]
[391973470,1761046206307,-4658.07,0.0002399,10]
[391973471,1761046206460,-3881.73,0.0002399,10]
[391973472,1761046206561,-3234.77,0.0002399,10]
[391973473,1761046206750,-5126.08166741,0.00023999,2]
[391973474,1761046206777,-10000.01,0.00023999,2]
[391973475,1761046206870,-2695.64,0.0002399,10]
[391973476,1761046206908,-4608.73,0.00023999,2]
[391973477,1761046206999,-10000.01,0.00023999,2]
[391973478,1761046208511,-10000.01,0.00023999,2]
[391973479,1761046208645,-10000.01,0.00023999,2]
[391973480,1761046208816,-265.14833259,0.00023999,2]
[391973481,1761046208852,-195.74671762,0.00023999,2]
[391973482,1761046208883,-500.0,0.00023999,2]
[391973483,1761046208921,-500.0,0.00023999,2]
[391973484,1761046208960,-206.49096485,0.00023999,2]
[391973485,1761046209078,-6665.23796988,0.00024,2]
[391973486,1761046209094,-10000.01,0.00024,2]
[391973487,1761046211499,-10000.01,0.00024,2]
[391973488,1761046211781,-10000.01,0.00024,2]
[391973489,1761046211815,-10000.01,0.00024,2]
[391973490,1761046211968,-10000.01,0.00024,2]
[391973491,1761046212050,274.15,0.00023401,6]
[391973492,1761046212080,-10000.01,0.00024,2]
[391973493,1761046212197,-10000.01,0.00024,2]
[391973494,1761046214662,-10000.01,0.00024,2]
[391973495,1761046214877,-10000.01,0.00024,2]
[391973496,1761046215011,-10000.01,0.00024,2]
[391973497,1761046215147,-10000.01,0.00024,2]
[391973498,1761046222217,4098.84045099,0.00023733,2]
[391973499,1761046223616,-901.15954901,0.00023733,2]
[391973500,1761046223645,-500.0,0.00023973,2]
[391973501,1761046223674,-500.0,0.00023973,2]
[391973502,1761046223705,-2246.37,0.0002399,10]
[391973503,1761046223784,-1704.95090198,0.00024,2]
[391973504,1761046223798,-10000.01,0.00024,2]
[391973505,1761046223860,-10000.01,0.00024,2]
[391973506,1761046224006,-10000.01,0.00024,2]
[391973507,1761046224123,-10000.01,0.00024,2]
[391973579,1761046232590,-4968.63378477,0.0002376,2]
[391973610,1761046238438,-31.36621523,0.0002376,2]
[391973611,1761046238447,-305.13499957,0.00023973,2]
[391973612,1761046238456,-500.0,0.00023973,2]
[391973613,1761046238466,-1871.98,0.0002399,10]
[391973614,1761046238476,-153257.69690731,0.00024,2]
[391973615,1761046238485,-27826.48708991,0.00024,60]
[391973616,1761046238495,-6203.55,0.00024,7]
[391973617,1761046238504,-5000.0,0.00024,2]
[391973618,1761046238513,-151.0,0.00024,2]
[391973619,1761046238522,-300.0,0.00024,2]
[391973620,1761046238531,-151.0,0.00024,7]
[391973621,1761046238540,-208655.76284961,0.00024142,2]
[391973622,1761046238550,-151.0,0.00024142,2]
[391973623,1761046238559,-174.778041,0.00024142,7]
[391973624,1761046238568,-508.86635397,0.00024521,2]
[391973626,1761046238584,-172.5,0.0002459,2]
[391973627,1761046238594,-299.49152557,0.00024658,2]
[391973628,1761046238604,-17213.0,0.000247,2]
[391973629,1761046238613,-215.73830608,0.00024798,2]
[391973630,1761046238623,-160.0,0.00024879,2]
[391973631,1761046238632,-243.57727224,0.00025,2]
[391973632,1761046238641,-195.0,0.0002519,2]
[391973633,1761046238651,-4104.72,0.0002536,3]
[391973634,1761046238660,-2052.36,0.0002536,3]
[391973635,1761046238669,-1026.18,0.0002536,3]
[391973636,1761046238679,-513.08,0.0002536,3]
[391973637,1761046238688,-217.5,0.0002579,2]
[391973638,1761046238697,-420.0,0.00026015,2]
[391973639,1761046238706,-240.0,0.0002639,2]
[391973640,1761046238717,-554.32750385,0.00026392,2]
[391973641,1761046238726,-636.05541,0.00026676,2]
[391973642,1761046238735,-262.5,0.0002699,2]
[391973643,1761046238745,-2296.5137351,0.00027,5]
[391973644,1761046238755,-14782.5,0.00027,2]
[391973645,1761046238764,-19055.38410351,0.00027,2]
[391973646,1761046238773,-151.0,0.00027,7]
[391973647,1761046238783,-151.0,0.00027,7]
[391973648,1761046238792,-151.0,0.00027,7]
[391973649,1761046238801,-152.289997,0.00027,7]
[391973650,1761046238811,-160.0,0.0002706,2]
[391973651,1761046238820,-458.10728199,0.00027469,2]
[391973652,1761046238830,-3092.69,0.000275,7]
[391973653,1761046238839,-462.9791833,0.0002753,2]
[391973654,1761046238848,-285.0,0.0002759,2]
[391973655,1761046238858,-260.0,0.00027608,2]
[391973656,1761046238867,-824.59310758,0.00027936,2]
[391973657,1761046238877,-833.36252993,0.00028075,2]
[391973658,1761046238887,-360.0,0.00028156,2]
[391973659,1761046238896,-307.5,0.0002819,2]
[391973660,1761046238906,-587.0,0.00028212,2]
[391973661,1761046238916,-1465.94330237,0.00028402,2]
[391973662,1761046238926,-3411.5799786,0.000285,7]
[391973663,1761046238936,-1481.53338654,0.0002862,2]
[391973664,1761046238946,-460.0,0.00028704,2]
[391973665,1761046238956,-330.0,0.0002879,2]
[391973666,1761046238966,-179.67658215,0.0002881,2]
[391973667,1761046238976,-2290.53640995,0.00028868,2]
[391973668,1761046238987,-554.32750385,0.00028884,2]
[391973669,1761046238997,-6003.41147125,0.00029,5]
[391973670,1761046239007,-151.0,0.00029,30]
[391973671,1761046239017,-213.152792,0.00029,30]
[391973672,1761046239027,-151.0,0.00029,30]
[391973673,1761046239037,-2314.89591648,0.00029165,2]
[391973674,1761046239047,-560.0,0.00029252,2]
[391973675,1761046239058,-3756.67506352,0.00029264,2]
[391973676,1761046239069,-6203.55,0.000293,7]
[391973677,1761046239079,-996.0,0.00029327,2]
[391973678,1761046239089,-28029.7454075,0.00029328,2]
[391973679,1761046239099,-151.0,0.00029328,30]
[391973680,1761046239110,-3298.37243033,0.00029334,2]
[391973681,1761046239120,-352.5,0.0002939,2]
[391973682,1761046239134,-198.8839067,0.00029419,2]
[391973683,1761046239145,-23410.01476968,0.0002956,2]
[391973684,1761046239155,-3333.45011973,0.0002971,2]
[391973685,1761046239165,-4489.45136351,0.000298,2]
[391973686,1761046239175,-660.0,0.000298,2]
[391973687,1761046239185,-2293.17887463,0.0002999,2]
[391973688,1761046239194,-375.0,0.0002999,2]
[391973689,1761046239204,-750.07998204,0.0003,14]
[391973690,1761046239214,-185.2455,0.0003,2]
[391973691,1761046239225,-4684.12275666,0.0003,2]
[391973692,1761046239235,-151.0,0.0003,30]
[391973693,1761046239245,-152.85868253,0.0003,60]
[391973694,1761046239255,-151.0,0.0003,30]
[391973695,1761046239265,-1526.53959623,0.0003,2]
[391973696,1761046239275,-213.375985,0.0003,30]
[391973697,1761046239285,-165.46,0.0003,5]
[391973698,1761046239295,-213.375985,0.0003,30]
[391973699,1761046239304,-213.375985,0.0003,30]
[391973700,1761046239314,-213.375985,0.0003,30]
[391973701,1761046239323,-151.449663,0.0003,30]
[391973702,1761046239333,-151.0,0.0003,30]
[391973703,1761046239342,-151.0,0.0003,30]
[391973704,1761046239351,-151.0,0.0003,30]
[391973705,1761046239374,-197.77374877,0.0003,14]
[391973706,1761046239385,-467.34438075,0.00030006,2]
[391973707,1761046239395,-3092.69,0.000301,7]
[391973708,1761046239405,-51196.4894967,0.0003012,7]
[391973709,1761046239415,-500.0,0.00030137,2]
[391973710,1761046239424,-500.0,0.00030137,2]
[391973711,1761046239433,-500.0,0.00030137,2]
[391973712,1761046239443,-500.0,0.00030137,2]
[391973713,1761046239452,-500.0,0.00030137,2]
[391973714,1761046239462,-561.86635561,0.00030137,2]
[391973715,1761046239471,-500.0,0.00030137,2]
[391973716,1761046239480,-500.0,0.00030137,2]
[391973717,1761046239489,-4537.19599629,0.00030255,2]
[391973718,1761046239498,-5863.77320948,0.00030266,2]
[391973719,1761046239507,-760.0,0.00030348,2]
[391973720,1761046239516,-377.41442607,0.00030398,2]
[391973721,1761046239525,-340.86223601,0.00030458,2]
[391973722,1761046239535,-255.28643561,0.0003059,2]
[391973723,1761046239544,-823.0,0.00030595,2]
[391973724,1761046239553,-600.0,0.00030599,30]
[391973725,1761046239563,-2503.30775561,0.00030617,5]
[391973726,1761046239572,-860.0,0.00030896,2]
[391973727,1761046239582,-212.39836721,0.00031,120]
[391973728,1761046239591,-666.28885699,0.00031,120]
[391973729,1761046239600,-605.18350725,0.00031,120]
[391973730,1761046239610,-1835.71287954,0.00031,120]
[391973731,1761046239619,-178.70547303,0.00031,120]
[391973732,1761046239628,-181.53397846,0.00031,120]
[391973733,1761046239638,-177.88438398,0.00031,120]
[391973734,1761046239648,-478.70470189,0.00031,120]
[391973735,1761046239657,-192.42173274,0.00031,120]
[391973736,1761046239666,-3609.29273575,0.00031014,5]
[391973737,1761046239676,-554.32750385,0.00031376,2]
[391973738,1761046239686,-960.0,0.00031444,2]
[391973739,1761046239695,-250.0,0.00031846,2]
[391973740,1761046239706,-250.0,0.00031846,2]
[391973741,1761046239716,-250.0,0.00031846,2]
[391973742,1761046239726,-310.22387796,0.00031846,2]
[391973743,1761046239735,-151.0,0.00031846,2]
[391973744,1761046239744,-151.0,0.00031846,2]
[391973745,1761046239754,-151.0,0.00031846,2]
[391973746,1761046239763,-151.0,0.00031846,2]
[391973747,1761046239772,-151.0,0.00031846,2]
[391973748,1761046239782,-151.0,0.00031846,2]
[391973749,1761046239791,-151.0,0.00031846,2]
[391973750,1761046239800,-199.03493984,0.00031846,2]
[391973751,1761046239810,-345.45211741,0.00031862,2]
[391973752,1761046239820,-666.28885699,0.000319,120]
[391973753,1761046239830,-605.18350725,0.000319,120]
[391973754,1761046239839,-1835.71287954,0.000319,120]
[391973755,1761046239848,-178.70547303,0.000319,120]
[391973756,1761046239858,-181.53397846,0.000319,120]
[391973757,1761046239867,-177.88438398,0.000319,120]
[391973758,1761046239877,-478.70470189,0.000319,120]
[391973759,1761046239886,-192.42173274,0.000319,120]
[391973760,1761046239896,-1060.0,0.00031992,2]
[391973761,1761046239905,-7891.88191261,0.00032,30]
[391973762,1761046239915,-344.86204916,0.00032187,2]
[391973763,1761046239925,-506.74480083,0.00032293,7]
[391973764,1761046239935,-6203.55,0.000323,7]
[391973765,1761046239945,-500.0,0.00032499,120]
[391973766,1761046239955,-592.13678295,0.000325,2]
[391973767,1761046239965,-65539.92150444,0.000325,2]
[391973769,1761046239975,-165.0,0.000325,7]
[391973770,1761046239985,-165.0,0.000325,7]
[391973771,1761046239995,-163.0,0.000325,7]
[391973772,1761046240004,-330.0,0.000325,7]
[391973773,1761046240014,-165.0,0.000325,7]
[391973774,1761046240023,-151.24162072,0.000325,7]
[391973775,1761046240033,-166.0,0.000325,7]